lending/lending_fUSD_20250917
["ID","MTS","AMOUNT","RATE_DAILY","PERIOD"]
[385950823,1758147041444,-400.0,0.00021917,2]
[385950824,1758147041454,-400.0,0.00021917,2]
[385950825,1758147041463,-400.0,0.00021917,2]
[385950826,1758147041474,-520.1000537,0.00021917,2]
[385950827,1758147041483,-400.0,0.00021917,2]
[385950828,1758147041493,-407.70146154,0.00021917,2]
[385950829,1758147041503,-400.0,0.00021917,2]
[385950830,1758147041512,-400.0,0.00021917,2]
[385950831,1758147041521,-400.0,0.00021917,2]
[385950832,1758147041531,-400.0,0.00021917,2]
[385950833,1758147041540,-400.0,0.00021917,2]
[385950834,1758147041550,-300.0,0.00021917,2]
[385950835,1758147041559,-400.0,0.00021917,2]
[385950836,1758147041569,-400.0,0.00021917,2]
[385950837,1758147041578,-400.0,0.00021917,2]
[385950838,1758147041589,-400.0,0.00021917,2]
[385950839,1758147041600,-400.0,0.00021917,2]
[385950840,1758147041610,-400.0,0.00021917,2]
[385950841,1758147041619,-400.0,0.00021917,2]
[385950842,1758147041630,-400.0,0.00021917,2]
[385950843,1758147041639,-400.0,0.00021917,2]
[385950844,1758147041651,-400.0,0.00021917,2]
[385950845,1758147041663,-400.0,0.00021917,2]
[385950846,1758147041672,-400.0,0.00021917,2]
[385950847,1758147041682,-400.0,0.00021917,2]
[385950848,1758147041691,-400.0,0.00021917,2]
[385950849,1758147042003,-400.0,0.00021917,2]
[385950850,1758147042016,-400.0,0.00021917,2]
[385950851,1758147042026,-400.0,0.00021917,2]
[385950852,1758147042035,-400.0,0.00021917,2]
[385950853,1758147042045,-400.0,0.00021917,2]
[385950854,1758147042057,-400.0,0.00021917,2]
[385950855,1758147042066,-400.0,0.00021917,2]
[385950856,1758147042076,-400.0,0.00021917,2]
[385950857,1758147042087,-205.82768579,0.00021917,2]
[385950858,1758147042098,-400.0,0.00021917,2]
[385950859,1758147042107,-400.0,0.00021917,2]
[385950860,1758147042116,-400.0,0.00021917,2]
[385950861,1758147042126,-500.0,0.00021917,2]
[385950862,1758147042135,-400.0,0.00021917,2]
[385950863,1758147042145,-400.0,0.00021917,2]
[385950864,1758147042155,-400.0,0.00021917,2]
[385950865,1758147042164,-511.5,0.00021917,2]
[385950866,1758147042175,-400.0,0.00021917,2]
[385950867,1758147042184,-400.0,0.00021917,2]
[385950868,1758147042194,-400.0,0.00021917,2]
[385950869,1758147042203,-492.84494292,0.00021917,2]
[385950870,1758147042213,-400.0,0.00021917,2]
[385950871,1758147042223,-400.0,0.00021917,2]
[385950872,1758147042233,-400.0,0.00021917,2]
[385950873,1758147042242,-506.9441013,0.00021917,2]
[385950874,1758147042251,-449.05,0.00021917,2]
[385950875,1758147042261,-400.0,0.00021917,2]
[385950876,1758147042271,-511.4623123,0.00021917,2]
[385950877,1758147042280,-400.0,0.00021917,2]
[385950878,1758147042290,-400.0,0.00021917,2]
[385950879,1758147042299,-400.0,0.00021917,2]
[385950880,1758147042309,-400.0,0.00021917,2]
[385950881,1758147042318,-400.0,0.00021917,2]
[385950882,1758147042327,-400.0,0.00021917,2]
[385950883,1758147042337,-400.0,0.00021917,2]
[385950884,1758147042346,-400.0,0.00021917,2]
[385950885,1758147042356,-400.0,0.00021917,2]
[385950886,1758147042365,-400.0,0.00021917,2]
[385950887,1758147042375,-400.0,0.00021917,2]
[385950888,1758147042385,-400.0,0.00021917,2]
[385950889,1758147042394,-400.0,0.00021917,2]
[385950890,1758147042404,-400.0,0.00021917,2]
[385950891,1758147042414,-400.0,0.00021917,2]
[385950892,1758147042424,-400.0,0.00021917,2]
[385950893,1758147042434,-400.0,0.00021917,2]
[385950894,1758147042444,-400.0,0.00021917,2]
[385950895,1758147042454,-400.0,0.00021917,2]
[385950896,1758147042464,-442.5,0.00021917,2]
[385950897,1758147042473,-400.0,0.00021917,2]
[385950898,1758147042483,-266.032515,0.00021917,2]
[385950899,1758147042492,-400.0,0.00021917,2]
[385950900,1758147042502,-400.0,0.00021917,2]
[385950901,1758147042512,-400.0,0.00021917,2]
[385950902,1758147042521,-400.0,0.00021917,2]
[385950903,1758147042531,-400.0,0.00021917,2]
[385950904,1758147042540,-400.0,0.00021917,2]
[385950905,1758147042550,-400.0,0.00021917,2]
[385950906,1758147042560,-400.0,0.00021917,2]
[385950907,1758147042569,-400.0,0.00021917,2]
[385950909,1758147042579,-400.0,0.00021917,2]
[385950910,1758147042588,-400.0,0.00021917,2]
[385950911,1758147042598,-400.0,0.00021917,2]
[385950912,1758147042607,-400.0,0.00021917,2]
[385950913,1758147042617,-400.0,0.00021917,2]
[385950914,1758147042627,-430.83,0.00021917,2]
[385950915,1758147042636,-400.0,0.00021917,2]
[385950916,1758147042645,-400.0,0.00021917,2]
[385950917,1758147042655,-400.0,0.00021917,2]
[385950918,1758147042665,-400.0,0.00021917,2]
[385950919,1758147042674,-400.0,0.00021917,2]
[385950920,1758147042683,-400.0,0.00021917,2]
[385950921,1758147042693,-400.0,0.00021917,2]
[385950922,1758147042702,-506.1,0.00021917,2]
[385950923,1758147042711,-400.0,0.00021917,2]
[385950924,1758147042721,-400.0,0.00021917,2]
[385950925,1758147042731,-540.38336612,0.00021917,2]
[385950926,1758147042741,-400.0,0.00021917,2]
[385950927,1758147042750,-400.0,0.00021917,2]
[385950928,1758147042759,-1661.04,0.00021917,2]
[385950929,1758147042769,-400.0,0.00021917,2]
[385950931,1758147042779,-400.0,0.00021917,2]
[385950932,1758147042788,-400.0,0.00021917,2]
[385950934,1758147042799,-400.0,0.00021917,2]
[385950935,1758147042808,-400.0,0.00021917,2]
[385950936,1758147042818,-400.0,0.00021917,2]
[385950937,1758147042827,-400.0,0.00021917,2]
[385950938,1758147042837,-400.0,0.00021917,2]
[385950939,1758147042846,-400.0,0.00021917,2]
[385950940,1758147042856,-400.0,0.00021917,2]
[385950941,1758147042866,-400.0,0.00021917,2]
[385950942,1758147042875,-400.0,0.00021917,2]
[385950943,1758147042884,-400.0,0.00021917,2]
[385950944,1758147042894,-400.0,0.00021917,2]
[385950945,1758147042903,-400.0,0.00021917,2]
[385950946,1758147042913,-400.0,0.00021917,2]
[385950947,1758147042922,-445.02,0.00021917,2]
[385950948,1758147042931,-400.0,0.00021917,2]
[385950949,1758147042941,-400.0,0.00021917,2]
[385950950,1758147042950,-400.0,0.00021917,2]
[385950951,1758147042959,-400.0,0.00021917,2]
[385950952,1758147042969,-400.0,0.00021917,2]
[385950953,1758147042980,-400.0,0.00021917,2]
[385950954,1758147042990,-452.59,0.00021917,2]
[385950955,1758147042999,-400.0,0.00021917,2]
[385950956,1758147043013,-400.0,0.00021917,2]
[385950957,1758147043024,-417.04,0.00021917,2]
[385950958,1758147043035,-400.0,0.00021917,2]
[385950959,1758147043046,-546.55,0.00021917,2]
[385950960,1758147043057,-777.79,0.00021917,2]
[385950961,1758147043067,-400.0,0.00021917,2]
[385950962,1758147043078,-400.0,0.00021917,2]
[385950963,1758147043089,-415.8,0.00021917,2]
[385950964,1758147043100,-400.0,0.00021917,2]
[385950965,1758147043110,-423.28,0.00021917,2]
[385950966,1758147043120,-400.0,0.00021917,2]
[385950967,1758147043131,-400.0,0.00021917,2]
[385950968,1758147043141,-449.35,0.00021917,2]
[385950969,1758147043150,-792.1,0.00021917,2]
[385950970,1758147043160,-400.0,0.00021917,2]
[385950971,1758147043169,-400.0,0.00021917,2]
[385950972,1758147043179,-400.0,0.00021917,2]
[385950973,1758147043189,-400.0,0.00021917,2]
[385950974,1758147043201,-400.0,0.00021917,2]
[385950975,1758147043212,-1144.48,0.00021917,2]
[385950976,1758147043222,-2301.98,0.00021917,2]
[385950977,1758147043232,-500.0,0.00021917,2]
[385950979,1758147043241,-500.0,0.00021917,2]
[385950980,1758147043251,-500.0,0.00021917,2]
[385950982,1758147043262,-400.0,0.00021917,2]
[385950983,1758147043272,-400.0,0.00021917,2]
[385950984,1758147043282,-400.0,0.00021917,2]
[385950985,1758147043291,-361.709313,0.00021917,2]
[385950986,1758147043304,-400.0,0.00021917,2]
[385950987,1758147043313,-1499.61,0.00021917,2]
[385950988,1758147043323,-400.0,0.00021917,2]
[385950989,1758147043333,-400.0,0.00021917,2]
[385950990,1758147043343,-571.53,0.00021917,2]
[385950991,1758147043352,-400.0,0.00021917,2]
[385950992,1758147043361,-400.0,0.00021917,2]
[385950993,1758147043370,-601.74,0.00021917,2]
[385950994,1758147043380,-400.0,0.00021917,2]
[385950995,1758147043389,-616.42,0.00021917,2]
[385950996,1758147043399,-439.15,0.00021917,2]
[385950997,1758147043408,-497.84,0.00021917,2]
[385950999,1758147043418,-400.0,0.00021917,2]
[385951000,1758147043428,-530.08,0.00021917,2]
[385951001,1758147043437,-485.84,0.00021917,2]
[385951002,1758147043447,-400.0,0.00021917,2]
[385951003,1758147043457,-400.0,0.00021917,2]
[385951004,1758147043466,-422.1,0.00021917,2]
[385951005,1758147043475,-400.0,0.00021917,2]
[385951006,1758147043485,-400.0,0.00021917,2]
[385951007,1758147043494,-400.0,0.00021917,2]
[385951008,1758147043504,-400.0,0.00021917,2]
[385951009,1758147043514,-400.0,0.00021917,2]
[385951010,1758147043524,-400.0,0.00021917,2]
[385951011,1758147043534,-400.0,0.00021917,2]
[385951012,1758147043544,-595.15,0.00021917,2]
[385951013,1758147043555,-400.0,0.00021917,2]
[385951014,1758147043565,-400.0,0.00021917,2]
[385951015,1758147043575,-400.0,0.00021917,2]
[385951016,1758147043585,-400.0,0.00021917,2]
[385951017,1758147043595,-400.0,0.00021917,2]
[385951018,1758147043604,-473.47,0.00021917,2]
[385951019,1758147043614,-400.0,0.00021917,2]
[385951020,1758147043623,-400.0,0.00021917,2]
[385951021,1758147043633,-1352.08,0.00021917,2]
[385951022,1758147043642,-400.0,0.00021917,2]
[385951023,1758147043652,-689.04,0.00021917,2]
[385951024,1758147043661,-1054.72,0.00021917,2]
[385951025,1758147043671,-400.0,0.00021917,2]
[385951026,1758147043680,-575.24,0.00021917,2]
[385951027,1758147043689,-400.0,0.00021917,2]
[385951028,1758147043699,-453.79,0.00021917,2]
[385951029,1758147043708,-5125.47,0.00021917,2]
[385951030,1758147043717,-400.0,0.00021917,2]
[385951031,1758147043727,-588.97,0.00021917,2]
[385951032,1758147043736,-400.0,0.00021917,2]
[385951033,1758147043745,-702.51,0.00021917,2]
[385951034,1758147043755,-400.0,0.00021917,2]
[385951035,1758147043764,-507.37,0.00021917,2]
[385951036,1758147043773,-955.06,0.00021917,2]
[385951037,1758147043783,-400.0,0.00021917,2]
[385951038,1758147043792,-400.0,0.00021917,2]
[385951039,1758147043802,-400.0,0.00021917,2]
[385951040,1758147043811,-1085.22,0.00021917,2]
[385951041,1758147043821,-863.25,0.00021917,2]
[385951042,1758147043831,-446.37,0.00021938,2]
[385951043,1758147043841,-8882.6885148,0.00021946,2]
[385951044,1758147043851,-446.37,0.00021948,2]
[385951045,1758147043860,-3195.48,0.00021948,2]
[385951046,1758147043869,-525.560002,0.00021957,2]
[385951047,1758147043879,-400.0,0.00021957,2]
[385951048,1758147043888,-400.0,0.00021957,2]
[385951049,1758147043898,-422.92,0.00021957,2]
[385951050,1758147043907,-400.0,0.00021957,2]
[385951051,1758147043917,-497.95162783,0.00021957,2]
[385951052,1758147043926,-400.0,0.00021957,2]
[385951053,1758147043936,-400.0,0.00021957,2]
[385951054,1758147043945,-1097.33,0.00021957,2]
[385951055,1758147043954,-400.0,0.00021957,2]
[385951056,1758147043964,-400.0,0.00021957,2]
[385951057,1758147043973,-400.0,0.00021957,2]
[385951058,1758147043983,-400.0,0.00021957,2]
[385951059,1758147043992,-400.0,0.00021957,2]
[385951060,1758147044002,-400.0,0.00021957,2]
[385951061,1758147044015,-400.0,0.00021957,2]
[385951062,1758147044025,-400.0,0.00021957,2]
[385951063,1758147044034,-400.0,0.00021957,2]
[385951064,1758147044043,-623.55,0.00021957,2]
[385951065,1758147044055,-400.0,0.00021957,2]
[385951066,1758147044065,-400.0,0.00021957,2]
[385951067,1758147044075,-400.0,0.00021957,2]
[385951068,1758147044086,-400.0,0.00021957,2]
[385951069,1758147044096,-400.0,0.00021957,2]
[385951070,1758147044106,-400.0,0.00021957,2]
[385951071,1758147044116,-400.0,0.00021957,2]
[385951072,1758147044125,-446.12,0.00021957,2]
[385951073,1758147044134,-400.0,0.00021957,2]
[385951074,1758147044144,-267.46983988,0.00021957,2]
[385951075,1758147044154,-400.0,0.00021957,2]
[385951076,1758147044163,-400.0,0.00021957,2]
[385951077,1758147044172,-400.0,0.00021957,2]
[385951078,1758147044182,-400.0,0.00021957,2]
[385951079,1758147044192,-400.0,0.00021957,2]
[385951080,1758147044201,-172.89428,0.00021957,2]
[385951081,1758147044211,-400.0,0.00021957,2]
[385951082,1758147044220,-400.0,0.00021957,2]
[385951083,1758147044230,-421.42702715,0.00021957,2]
[385951084,1758147044240,-183.78808124,0.00021957,2]
[385951085,1758147044249,-282.13206414,0.00021957,2]
[385951086,1758147044259,-500.0,0.00021957,2]
[385951087,1758147044269,-158.30814967,0.00021957,2]
[385951088,1758147044278,-409.8388201,0.00021958,2]
[385951089,1758147044288,-400.0,0.00021958,2]
[385951090,1758147044298,-400.0,0.00021958,2]
[385951091,1758147044308,-400.0,0.00021958,2]
[385951092,1758147044318,-400.0,0.00021958,2]
[385951093,1758147044328,-406.06427837,0.00021958,2]
[385951094,1758147044337,-400.0,0.00021958,2]
[385951095,1758147044347,-400.0,0.00021958,2]
[385951096,1758147044356,-399.06613893,0.00021958,2]
[385951097,1758147044368,-400.0,0.00021958,2]
[385951098,1758147044377,-400.0,0.00021958,2]
[385951099,1758147044387,-400.0,0.00021958,2]
[385951100,1758147044396,-400.0,0.00021958,2]
[385951101,1758147044406,-400.0,0.00021958,2]
[385951102,1758147044415,-400.0,0.00021958,2]
[385951103,1758147044425,-400.0,0.00021958,2]
[385951104,1758147044434,-400.0,0.00021958,2]
[385951105,1758147044443,-400.0,0.00021958,2]
[385951106,1758147044453,-400.0,0.00021958,2]
[385951107,1758147044462,-400.0,0.00021958,2]
[385951108,1758147044473,-400.0,0.00021958,2]
[385951109,1758147044482,-400.0,0.00021958,2]
[385951110,1758147044491,-400.0,0.00021958,2]
[385951111,1758147044501,-400.0,0.00021958,2]
[385951112,1758147044510,-445.16,0.00021958,2]
[385951113,1758147044519,-400.0,0.00021958,2]
[385951114,1758147044528,-400.0,0.00021958,2]
[385951115,1758147044538,-400.0,0.00021958,2]
[385951116,1758147044547,-400.0,0.00021958,2]
[385951117,1758147044558,-400.0,0.00021958,2]
[385951118,1758147044567,-400.0,0.00021958,2]
[385951119,1758147044577,-280.78523243,0.00021958,2]
[385951120,1758147044586,-405.61711367,0.00021958,2]
[385951121,1758147044596,-400.0,0.00021958,2]
[385951122,1758147044606,-400.0,0.00021958,2]
[385951123,1758147044616,-400.0,0.00021958,2]
[385951124,1758147044625,-400.0,0.00021958,2]
[385951125,1758147044634,-252.92381925,0.00021958,2]
[385951126,1758147044643,-400.0,0.00021958,2]
[385951127,1758147044653,-400.0,0.00021958,2]
[385951128,1758147044663,-400.0,0.00021958,2]
[385951129,1758147044673,-400.0,0.00021958,2]
[385951130,1758147044684,-400.0,0.00021958,2]
[385951131,1758147044694,-400.0,0.00021958,2]
[385951132,1758147044703,-408.51,0.00021958,2]
[385951133,1758147044713,-334.98449388,0.00021958,2]
[385951134,1758147044722,-400.0,0.00021958,2]
[385951135,1758147044731,-400.0,0.00021958,2]
[385951136,1758147044740,-233.72345723,0.00021958,2]
[385951137,1758147044750,-400.0,0.00021958,2]
[385951138,1758147044759,-400.0,0.00021958,2]
[385951139,1758147044769,-400.0,0.00021958,2]
[385951140,1758147044778,-402.58905033,0.00021958,2]
[385951141,1758147044788,-400.0,0.00021958,2]
[385951142,1758147044797,-400.0,0.00021958,2]
[385951143,1758147044808,-400.0,0.00021958,2]
[385951144,1758147044818,-400.0,0.00021958,2]
[385951145,1758147044832,-400.0,0.00021958,2]
[385951146,1758147044846,-400.0,0.00021958,2]
[385951147,1758147044858,-400.0,0.00021958,2]
[385951148,1758147044868,-400.0,0.00021958,2]
[385951149,1758147044879,-400.0,0.00021958,2]
[385951150,1758147044888,-400.0,0.00021958,2]
[385951151,1758147044897,-357.95059723,0.00021958,2]
[385951152,1758147044907,-400.0,0.00021958,2]
[385951153,1758147044916,-400.0,0.00021958,2]
[385951154,1758147044925,-400.0,0.00021958,2]
[385951155,1758147044935,-400.0,0.00021958,2]
[385951156,1758147044944,-400.0,0.00021958,2]
[385951157,1758147044953,-400.0,0.00021958,2]
[385951158,1758147044962,-400.0,0.00021958,2]
[385951159,1758147044971,-400.0,0.00021958,2]
[385951160,1758147044981,-400.0,0.00021958,2]
[385951161,1758147044991,-400.0,0.00021958,2]
[385951162,1758147045001,-400.0,0.00021958,2]
[385951163,1758147045013,-400.0,0.00021958,2]
[385951164,1758147045022,-400.0,0.00021958,2]
[385951165,1758147045032,-400.0,0.00021958,2]
[385951166,1758147045041,-400.0,0.00021958,2]
[385951167,1758147045052,-400.0,0.00021958,2]
[385951168,1758147045061,-400.0,0.00021958,2]
[385951169,1758147045071,-400.0,0.00021958,2]
[385951170,1758147045080,-400.0,0.00021958,2]
[385951171,1758147045091,-400.0,0.00021958,2]
[385951172,1758147045102,-400.0,0.00021958,2]
[385951173,1758147045112,-400.0,0.00021958,2]
[385951174,1758147045123,-400.0,0.00021958,2]
[385951175,1758147045135,-400.0,0.00021958,2]
[385951176,1758147045148,-400.0,0.00021958,2]
[385951177,1758147045160,-409.33770688,0.00021958,2]
[385951178,1758147045171,-400.0,0.00021958,2]
[385951179,1758147045181,-401.42167098,0.00021958,2]
[385951180,1758147045192,-400.0,0.00021958,2]
[385951181,1758147045203,-400.0,0.00021958,2]
[385951182,1758147045214,-400.0,0.00021958,2]
[385951183,1758147045228,-400.0,0.00021958,2]
[385951184,1758147045240,-400.0,0.00021958,2]
[385951185,1758147045251,-402.18257465,0.00021958,2]
[385951186,1758147045263,-400.0,0.00021958,2]
[385951187,1758147045276,-400.0,0.00021958,2]
[385951188,1758147045289,-400.0,0.00021958,2]
[385951189,1758147045301,-400.0,0.00021958,2]
[385951190,1758147045312,-400.0,0.00021958,2]
[385951191,1758147045323,-400.0,0.00021958,2]
[385951192,1758147045334,-400.0,0.00021958,2]
[385951193,1758147045345,-400.0,0.00021958,2]
[385951194,1758147045355,-400.0,0.00021958,2]
[385951195,1758147045364,-1013.85182223,0.00021958,2]
[385951196,1758147045374,-400.0,0.00021958,2]
[385951197,1758147045386,-400.0,0.00021958,2]
[385951198,1758147045398,-400.0,0.00021958,2]
[385951199,1758147045409,-400.0,0.00021958,2]
[385951200,1758147045421,-541.10389069,0.00021958,2]
[385951201,1758147045433,-400.0,0.00021958,2]
[385951202,1758147045444,-400.0,0.00021958,2]
[385951203,1758147045457,-200.0,0.00021958,2]
[385951205,1758147045470,-400.0,0.00021958,2]
[385951206,1758147045483,-400.0,0.00021958,2]
[385951207,1758147045495,-403.13617341,0.00021958,2]
[385951208,1758147045507,-401.73820505,0.00021958,2]
[385951209,1758147045518,-400.0,0.00021958,2]
[385951211,1758147045531,-400.0,0.00021958,2]
[385951213,1758147045543,-492.50668139,0.00021958,2]
[385951215,1758147045555,-400.0,0.00021958,2]
[385951217,1758147045565,-400.0,0.00021958,2]
[385951219,1758147045578,-403.23764142,0.00021958,2]
[385951221,1758147045588,-400.0,0.00021958,2]
[385951223,1758147045599,-400.0,0.00021958,2]
[385951225,1758147045610,-400.0,0.00021958,2]
[385951227,1758147045622,-400.0,0.00021958,2]
[385951231,1758147045633,-404.89441954,0.00021958,2]
[385951233,1758147045644,-400.0,0.00021958,2]
[385951235,1758147045656,-400.0,0.00021958,2]
[385951237,1758147045669,-400.0,0.00021958,2]
[385951239,1758147045679,-400.0,0.00021958,2]
[385951240,1758147045690,-400.0,0.00021958,2]
[385951241,1758147045701,-400.0,0.00021958,2]
[385951242,1758147045711,-400.0,0.00021958,2]
[385951243,1758147045721,-400.0,0.00021958,2]
[385951244,1758147045731,-400.0,0.00021958,2]
[385951245,1758147045741,-400.0,0.00021958,2]
[385951246,1758147045751,-400.0,0.00021958,2]
[385951247,1758147045760,-400.0,0.00021958,2]
[385951248,1758147045770,-400.0,0.00021958,2]
[385951249,1758147045781,-400.0,0.00021958,2]
[385951250,1758147045794,-400.0,0.00021958,2]
[385951251,1758147045806,-442.11,0.00021958,2]
[385951252,1758147045816,-400.0,0.00021958,2]
[385951253,1758147045825,-400.0,0.00021958,2]
[385951254,1758147045835,-400.0,0.00021958,2]
[385951255,1758147045845,-4.78226875,0.00021958,2]
[385951262,1758147046809,-456.10881477,0.00021858,2]
[385951263,1758147046819,-265.158857,0.00021957,2]
[385951264,1758147046830,-395.21773125,0.00021958,2]
[385951265,1758147046840,-400.0,0.00021958,2]
[385951266,1758147046850,-403.22880218,0.00021958,2]
[385951267,1758147046861,-400.0,0.00021958,2]
[385951268,1758147046871,-400.0,0.00021958,2]
[385951269,1758147046881,-365.90808768,0.00021958,2]
[385951270,1758147046895,-34.09191232,0.00021958,2]
[385951271,1758147046905,-400.0,0.00021958,2]
[385951272,1758147046916,-30.5192608,0.00021958,2]
[385951273,1758147046928,-369.4807392,0.00021958,2]
[385951274,1758147046939,-413.09529129,0.00021958,2]
[385951275,1758147046950,-383.05056941,0.00021958,2]
[385951276,1758147046963,-16.94943059,0.00021958,2]
[385951277,1758147046973,-245.27164756,0.00021958,2]
[385951288,1758147395340,242.0,0.0002007,2]
[385951289,1758147396174,242.0,0.0001958,2]
[385951290,1758147396571,242.0,0.000191,2]
[385951291,1758147396964,242.0,0.0001862,2]
[385951292,1758147397282,242.0,0.0001814,2]
[385951298,1758147639231,300.0,0.0003,120]
[385951300,1758147689265,200.0,0.0003,120]
[385951308,1758147889589,156.88,0.00010387,2]
[385951309,1758147889773,156.88,0.00012984,2]
[385951310,1758147889991,156.88,0.0001558,2]
[385951311,1758147890239,156.88,0.00018177,2]
[385951312,1758147908298,9649.44,0.0002,2]
[385951313,1758147908323,15000.0,0.0002,2]
[385951314,1758147908348,15000.0,0.0002,2]
[385951315,1758147908372,15000.0,0.0002,2]
[385951316,1758147908397,15000.0,0.0002,2]
[385951317,1758147908421,15000.0,0.0002,2]
[385951318,1758147908443,15000.0,0.0002,2]
[385951319,1758147908466,15000.0,0.0002,2]
[385951320,1758147908488,15000.0,0.0002,2]
[385951321,1758147908515,15000.0,0.0002,2]
[385951322,1758147908538,15000.0,0.0002,2]
[385951323,1758147908561,15000.0,0.0002,2]
[385951324,1758147908584,15000.0,0.0002,2]
[385951325,1758147908608,15000.0,0.0002,2]
[385951326,1758147908631,15000.0,0.0002,2]
[385951327,1758147908654,15000.0,0.0002,2]
[385951328,1758147908677,15000.0,0.0002,2]
[385951329,1758147908700,15000.0,0.0002,2]
[385951330,1758147908726,15000.0,0.0002,2]
[385951331,1758147908749,15000.0,0.0002,2]
[385951332,1758147908771,15000.0,0.0002,2]
[385951333,1758147908798,15000.0,0.0002,2]
[385951334,1758147908822,7570.41,0.0002,2]
[385951362,1758148232049,-662.88,0.00020312,2]
[385951363,1758148232058,-300.0,0.00020415,2]
[385951364,1758148232068,-178.19334636,0.0002045,2]
[385951365,1758148232078,-300.0,0.00020516,2]
[385951366,1758148232088,-242.0,0.0002055,2]
[385951367,1758148232098,-150.0,0.00020644,7]
[385951368,1758148232109,-282.3,0.00020694,2]
[385951369,1758148232119,-156.88,0.00020774,2]
[385951370,1758148232129,-519.03,0.00020868,2]
[385951371,1758148232139,-242.0,0.0002103,2]
[385951372,1758148232148,-532.11,0.00021083,2]
[385951373,1758148232158,-484.7686,0.00021084,2]
[385951374,1758148232168,-666.0,0.00021116,3]
[385951375,1758148232177,-300.0,0.00021368,2]
[385951376,1758148232187,-1200.0,0.00021368,2]
[385951377,1758148232196,-300.0,0.00021368,2]
[385951378,1758148232206,-4822.74063364,0.00021369,2]
[385951379,1758148232217,-3743.01492547,0.00021369,2]
[385951380,1758148232227,-248.71531821,0.00021369,2]
[385951381,1758148232237,-1747.24,0.00021382,2]
[385951382,1758148232247,-4579.6356198,0.00021424,2]
[385951383,1758148232258,-1146.48416563,0.00021424,2]
[385951384,1758148232274,-3156.56872937,0.00021424,2]
[385951385,1758148232283,-1695.07923927,0.00021479,2]
[385951386,1758148232295,-847.87333955,0.00021479,2]
[385951387,1758148232306,-6668.39541103,0.00021479,2]
[385951388,1758148232315,-242.0,0.0002151,2]
[385951389,1758148232325,-5708.05649491,0.00021534,2]
[385951390,1758148232339,-515.9,0.00021656,2]
[385951391,1758148232349,-282.3,0.00021728,2]
[385951392,1758148232360,-327.71544043,0.00021743,2]
[385951393,1758148232370,-1100.0,0.00021757,2]
[385951394,1758148232379,-1000.0,0.00021758,2]
[385951396,1758148232388,-2500.0,0.00021758,2]
[385951398,1758148232399,-7345.81226769,0.00021817,2]
[385951400,1758148232409,-399.09521288,0.00021817,2]
[385951402,1758148232418,-6867.49159599,0.00021843,2]
[385951405,1758148232428,-606.60154104,0.00021843,2]
[385951408,1758148232437,-250.0,0.00021845,2]
[385951411,1758148232447,-250.0,0.00021845,2]